bitfinex/quotes_ETHUSD_20251110
["timestamp","ask_amount","ask_price","bid_price","bid_amount"]
[1762745505406,0.80361423,3635.0,3634.3,3.06703767]
[1762745505620,0.37331423,3634.9,3634.5,2.75139679]
[1762745505907,0.25621423,3634.8,3634.5,2.75139679]
[1762745506107,0.0922,3634.6,3634.5,2.75139679]
[1762745507040,0.1171,3634.9,3634.6,2.75132581]
[1762745507236,0.1171,3634.9,3634.6,2.75126707]
[1762745507237,0.25585652,3634.8,3634.6,2.75126707]
[1762745507543,0.2558116,3634.7,3634.6,2.75126707]
[1762745508010,0.1171,3634.9,3634.7,2.7511939]
[1762745508226,0.25581378,3634.8,3634.7,2.7511939]
[1762745508807,0.33501378,3634.8,3634.7,2.7511939]
[1762745509047,0.33501378,3634.8,3634.4,3.85]
[1762745509211,0.25579031,3634.7,3634.5,2.75141009]
[1762745509555,0.0792,3634.8,3634.4,6.60146849]
[1762745509842,0.25579067,3634.7,3634.5,2.7513629]
[1762745510030,0.0795,3634.6,3634.5,2.7513629]
[1762745510540,0.1167,3634.9,3634.7,2.75118676]
[1762745510845,0.25579668,3634.8,3634.7,2.75118676]
[1762745511031,0.25579668,3634.8,3634.4,3.85]
[1762745511231,0.25579668,3634.7,3634.4,4.3083]
[1762745511546,0.002,3635.0,3634.8,2.75117593]
[1762745511705,0.25582605,3634.9,3634.8,2.75117593]
[1762745511904,0.002,3635.0,3634.7,2.75123397]
[1762745512134,0.25582621,3634.9,3634.8,2.751183]
[1762745512941,0.25582621,3634.9,3634.8,3.227383]
[1762745514059,0.002,3635.0,3634.8,0.9345]
[1762745514358,0.002,3635.0,3634.9,3.22730732]
[1762745514517,0.002,3635.0,3634.9,4.09111132]
[1762745514911,0.002,3635.0,3634.9,6.99111132]
[1762745515130,0.002,3635.0,3634.9,4.09111132]
[1762745516020,0.002,3635.0,3634.9,3.68560732]
[1762745516221,0.002,3635.0,3634.9,3.22730732]
[1762745516525,0.002,3635.0,3634.9,6.46585445]
[1762745516726,0.1535,3636.9,3636.4,2.74992351]
[1762745516926,0.2559857,3636.8,3636.0,4.39306277]
[1762745517119,0.2559857,3636.7,3636.1,0.71433701]
[1762745517314,0.4504,3637.7,3636.8,0.4533]
[1762745517521,3.00499814,3637.6,3636.8,0.4533]
[1762745517715,0.25590765,3637.5,3636.8,0.4533]
[1762745517920,0.25590765,3637.4,3636.8,0.4533]
[1762745518151,0.25590765,3637.3,3636.9,2.74958713]
[1762745518458,0.25590765,3637.2,3636.9,2.74958713]
[1762745518657,0.25590765,3637.1,3636.6,2.74981979]
[1762745518865,2.74907286,3637.6,3636.8,2.7496481]
[1762745518866,0.25590765,3637.0,3636.8,2.7496481]
[1762745519156,0.1171,3638.0,3636.4,2.7499725]
[1762745519157,0.25590765,3636.9,3636.4,2.7499725]
[1762745519491,0.25590765,3636.9,3635.7,2.75048798]
[1762745519492,0.4584,3636.5,3635.5,1.259712]
[1762745519755,2.75017944,3636.2,3635.4,0.1847]
[1762745519961,0.0009,3636.3,3635.2,2.75088028]
[1762745519962,0.4584,3635.5,3635.2,2.75088028]
[1762745520119,0.4584,3635.5,3634.8,3.23192497]
[1762745520319,0.4584,3635.5,3634.1,2.94904942]
[1762745520320,0.35636796,3635.4,3634.1,0.1974]
[1762745520659,0.35636796,3635.4,3634.1,2.75164328]
[1762745520660,0.0009,3634.9,3634.1,2.75164328]
[1762745520873,0.0009,3634.9,3633.8,0.1847]
[1762745520874,0.2560775,3634.8,3633.8,0.1847]
[1762745521057,0.0977,3634.2,3633.3,0.4808]
[1762745521365,0.2560775,3634.1,3633.2,1.17453256]
[1762745521666,2.86826276,3634.9,3633.2,1.17453256]
[1762745521667,0.2560775,3634.0,3633.4,1.259712]
[1762745521869,0.2560775,3633.9,3633.4,1.259712]
[1762745522065,3.20188745,3634.4,3633.4,1.259712]
[1762745522066,0.2560775,3633.8,3633.6,2.75207585]
[1762745522271,0.4504,3634.4,3633.5,2.75214677]
[1762745522272,0.25632399,3633.7,3633.5,2.75214677]
[1762745522470,3.20195065,3634.4,3633.5,2.75214677]
[1762745522763,0.25633058,3634.3,3633.5,2.75214677]
[1762745522962,0.25633058,3634.2,3633.7,2.75194795]
[1762745523131,0.25633058,3634.1,3633.7,2.75194795]
[1762745523343,0.25633058,3634.0,3633.3,0.4808]
[1762745523544,0.25633058,3633.9,3633.8,2.75187553]
[1762745523966,0.25633058,3633.9,3633.4,3.76538725]
[1762745524163,0.25633058,3633.8,3633.6,2.75203415]
[1762745524367,3.20192205,3634.4,3633.5,0.4808]
[1762745524575,0.1368,3634.1,3633.5,0.1376]
[1762745524887,0.25633017,3634.0,3633.5,0.1376]
[1762745525093,0.1368,3634.1,3633.5,2.88974855]
[1762745525094,0.25633017,3633.9,3633.5,2.88974855]
[1762745525251,0.25633017,3633.8,3633.5,0.1376]
[1762745525450,0.1368,3634.1,3633.5,0.1376]
[1762745525451,0.25633017,3633.7,3633.5,0.1376]
[1762745525651,0.1368,3634.1,3633.5,0.1376]
[1762745525951,0.25633802,3634.0,3633.5,0.1376]
[1762745526163,0.25633802,3633.9,3633.5,0.1376]
[1762745526346,0.25633802,3633.9,3633.3,1.259712]
[1762745526347,0.0986,3633.6,3632.6,0.4808]
[1762745526551,1.259712,3634.8,3632.9,2.7525585]
[1762745526552,0.26083802,3633.5,3632.9,2.7525585]
[1762745526746,3.00859473,3633.4,3632.2,0.33225427]
[1762745527071,0.70673802,3633.3,3632.2,0.33225427]
[1762745527270,0.0986,3632.3,3632.1,0.001]
[1762745527584,0.1256,3632.4,3632.1,0.001]
[1762745527782,0.1001,3632.2,3632.1,0.001]
[1762745527986,0.35641638,3632.2,3632.1,0.001]
[1762745528557,3.55646873,3632.2,3632.1,0.001]
[1762745528759,3.55646873,3632.2,3631.6,0.001]
[1762745528760,2.75337977,3631.9,3631.6,0.001]
[1762745529083,4.4716434,3631.7,3631.6,0.001]
[1762745529287,4.81865978,3631.7,3631.6,0.001]
[1762745529587,5.40783857,3631.7,3631.6,0.001]
[1762745529785,5.40783857,3631.7,3630.8,0.001]
[1762745529786,2.75368305,3631.5,3630.8,0.001]
[1762745529990,2.85243471,3631.3,3630.8,0.001]
[1762745530186,3.10875109,3631.3,3630.8,0.001]
[1762745530494,2.75413809,3630.9,3630.8,0.001]
[1762745530673,2.75413809,3630.9,3630.0,0.001]
[1762745530674,2.75474504,3630.1,3630.0,0.001]
[1762745530880,3.10516142,3630.1,3630.0,0.001]
[1762745531081,3.55556142,3630.1,3630.0,0.001]
[1762745531450,2.75504862,3629.7,3629.6,0.001]
[1762745531655,3.765965,3629.7,3629.6,0.001]
[1762745531993,4.816577,3629.7,3629.6,0.001]
[1762745532155,5.472577,3629.7,3629.6,0.001]
[1762745535178,2.06152838,3629.7,3629.6,0.001]
[1762745535490,5.21626062,3629.7,3629.6,0.001]
[1762745537386,4.56026062,3629.7,3629.6,0.001]
[1762745537587,5.21626062,3629.7,3629.6,0.001]
[1762745537782,0.1256,3630.1,3629.6,0.001]
[1762745537989,0.0986,3629.7,3629.6,0.001]
[1762745540598,2.85364862,3629.7,3629.6,0.001]
[1762745540793,3.30054862,3629.7,3629.6,0.001]
[1762745540995,5.21626062,3629.7,3629.6,0.001]
[1762745541222,5.87395864,3629.7,3629.6,0.001]
[1762745542059,5.21795864,3629.7,3629.6,0.001]
[1762745542197,5.87395864,3629.7,3629.6,0.001]
[1762745543502,5.21795864,3629.7,3629.6,0.001]
[1762745543696,5.87395864,3629.7,3629.6,0.001]
[1762745544098,4.81245464,3629.7,3629.6,0.001]
[1762745544390,5.46845464,3629.7,3629.6,0.001]
[1762745545935,4.36555464,3629.7,3629.6,0.001]
[1762745546352,1.61050602,3629.7,3629.6,0.001]
[1762745546556,2.75488067,3630.0,3629.6,0.001]
[1762745546710,1.51193241,3629.9,3629.6,0.001]
[1762745546911,0.25222041,3629.8,3629.6,0.001]
[1762745547315,0.25258043,3629.7,3629.6,0.001]
[1762745547533,0.25258043,3629.9,3629.6,0.001]
[1762745547735,0.25257305,3629.8,3629.6,0.001]
[1762745547934,1.915712,3630.1,3629.6,0.001]
[1762745548135,0.25257079,3630.0,3629.6,0.001]
[1762745548338,0.25257079,3629.9,3629.6,0.001]
[1762745548554,0.25257079,3629.8,3629.6,0.001]
[1762745548847,0.25257079,3629.7,3629.6,0.001]
[1762745549043,0.25257079,3629.9,3629.6,0.001]
[1762745549232,0.2062,3629.7,3629.6,0.001]
[1762745549455,3.21381941,3629.7,3629.6,0.001]
[1762745549768,0.25257079,3629.7,3629.6,0.9923]
[1762745550251,0.25257079,3629.7,3629.6,3.74742453]
[1762745550935,0.25257079,3629.7,3629.6,0.9923]
[1762745551254,0.25257079,3629.7,3629.6,0.4951]
[1762745551549,0.25257079,3629.7,3629.6,3.74742453]
[1762745551734,0.25257079,3629.7,3629.6,4.3978883]
[1762745554029,0.25257079,3629.7,3629.6,4.8033923]
[1762745554354,0.25257079,3629.7,3629.6,4.9409923]
[1762745557151,0.25257079,3629.7,3629.6,10.0507043]
[1762745557859,0.1376,3630.7,3630.5,2.75444153]
[1762745558029,0.1376,3630.7,3630.6,3.44046566]
[1762745558364,0.72873914,3630.7,3630.6,3.93766566]
[1762745558549,0.59113914,3630.7,3630.6,4.60687638]
[1762745558951,0.1376,3631.0,3630.6,4.60687638]
[1762745558952,0.1376,3631.0,3630.9,2.75413809]
[1762745559157,0.5917679,3631.0,3630.9,3.74543809]
[1762745559574,1.48460397,3632.0,3630.9,3.74543809]
[1762745559575,0.87591899,3631.8,3631.7,2.7535314]
[1762745559745,0.72907164,3631.8,3631.7,2.7535314]
[1762745559937,0.72907164,3631.8,3631.7,3.7448314]
[1762745561396,0.2182,3631.8,3631.4,2.75374436]
[1762745561578,0.2182,3631.8,3631.2,2.94590732]
[1762745561579,0.59147164,3631.7,3631.2,2.94590732]
[1762745561781,0.59147164,3631.7,3631.5,2.75367547]
[1762745561986,0.59147164,3631.7,3631.6,3.24770722]
[1762745562286,0.1376,3631.8,3631.6,3.24770722]
[1762745562721,0.1376,3631.8,3631.6,0.4941]
[1762745563026,2.50459777,3631.7,3630.0,0.192]
[1762745563168,2.7540805,3631.0,3630.0,2.94681536]
[1762745563501,0.59008577,3631.6,3630.0,0.53640154]
[1762745563502,0.59008577,3630.9,3630.0,0.53640154]
[1762745563665,0.69958577,3630.8,3630.0,0.192]
[1762745563872,2.75436566,3630.6,3629.6,0.001]
[1762745564071,1.32791054,3630.5,3629.6,0.001]
[1762745564387,0.59008577,3630.4,3630.0,2.75475767]
[1762745564618,0.59008577,3630.6,3629.6,0.4982]
[1762745564800,0.59008577,3630.6,3629.7,2.75504345]
[1762745564801,3.34453777,3630.5,3629.7,2.75504345]
[1762745564990,0.59008577,3630.4,3629.8,2.75494691]
[1762745565189,0.59008577,3630.3,3629.6,0.4982]
[1762745565396,0.73782477,3630.7,3629.6,0.4982]
[1762745565397,0.59008577,3630.6,3630.0,2.75480464]
[1762745565600,0.73782477,3630.7,3629.6,0.4982]
[1762745565601,0.59008577,3630.5,3630.2,0.4941]
[1762745565802,0.59008577,3630.4,3630.2,3.24875755]
[1762745565997,0.59008577,3630.7,3630.2,0.4941]
[1762745566198,0.59008577,3630.6,3630.2,0.4941]
[1762745566496,0.59008577,3630.7,3630.5,2.75443166]
[1762745566696,0.59008577,3631.0,3630.5,0.4941]
[1762745566905,0.59008577,3630.9,3630.3,0.4972]
[1762745567084,0.59008577,3630.8,3630.2,2.75461885]
[1762745567287,0.4574,3630.3,3629.6,0.001]
[1762745567492,0.59008577,3630.7,3629.6,0.001]
[1762745567493,2.7545366,3630.4,3629.6,0.001]
[1762745567703,0.59008577,3630.3,3629.9,2.75487605]
[1762745567891,0.59008577,3630.5,3629.6,0.4781]
[1762745568089,0.59008577,3630.5,3630.1,2.75474184]
[1762745568285,2.86366379,3630.9,3630.4,0.4998]
[1762745568286,0.59008577,3630.7,3630.4,0.4998]
[1762745568499,0.59008577,3630.8,3630.4,0.9769]
[1762745568808,3.34408749,3631.1,3630.4,0.4998]
[1762745568975,0.59008577,3631.0,3630.4,3.25431125]
[1762745569181,0.1091,3630.5,3629.8,1.259712]
[1762745569507,0.5755,3630.5,3629.6,0.4781]
[1762745569707,0.25631084,3630.4,3629.7,0.6509812]
[1762745569911,0.25631084,3630.3,3629.7,3.4060159]
[1762745570113,0.25631084,3630.2,3629.7,0.6509812]
[1762745570276,0.1091,3630.5,3629.6,0.001]
[1762745570277,0.0795,3629.8,3629.6,0.001]
[1762745570481,0.25631084,3629.7,3629.6,0.001]
[1762745572395,0.25631084,3629.7,3629.6,2.75612453]
[1762745572595,0.25631084,3629.7,3629.6,0.001]
[1762745572899,0.25631084,3629.7,3629.6,3.25592453]
[1762745573214,0.25631084,3629.7,3629.6,4.33709977]
[1762745574206,0.25631084,3629.7,3629.6,0.001]
[1762745574986,0.72181084,3629.7,3629.6,0.001]
[1762745575497,4.15178619,3629.7,3629.6,0.001]
[1762745575699,1.39873757,3629.7,3629.6,0.001]
[1762745576110,1.31503757,3629.7,3629.6,0.001]
[1762745576309,4.07008619,3629.7,3629.6,0.001]
[1762745576797,1.31503757,3629.7,3629.6,0.001]
[1762745577208,4.07008619,3629.7,3629.6,0.001]
[1762745577618,1.31503757,3629.7,3629.6,0.001]
[1762745578129,4.15378619,3629.7,3629.6,0.001]
[1762745579920,4.80978619,3629.7,3629.6,0.001]
[1762745580807,4.72608619,3629.7,3629.6,0.001]
[1762745581018,4.80978619,3629.7,3629.6,0.001]
[1762745581896,6.47500219,3629.7,3629.6,0.001]
[1762745582191,4.42064419,3629.2,3629.1,0.001]
[1762745582426,6.38768176,3629.2,3629.1,0.001]
[1762745582626,6.47438176,3629.2,3629.1,0.001]
[1762745582813,7.46021921,3629.2,3629.1,0.001]
[1762745583196,6.47438176,3629.2,3629.1,0.001]
[1762745583797,2.18964957,3629.2,3629.1,0.001]
[1762745584300,4.35385103,3629.2,3629.1,0.001]
[1762745584931,1.51602284,3629.2,3629.1,0.001]
[1762745585131,0.25631084,3629.2,3629.1,0.001]
[1762745585508,3.09793903,3629.2,3629.1,0.001]
[1762745585917,3.55703903,3629.2,3629.1,0.001]
[1762745586730,4.81675103,3629.2,3629.1,0.001]
[1762745587246,5.22225503,3629.2,3629.1,0.001]
[1762745587947,5.81243672,3629.2,3629.1,0.001]
[1762745588330,5.81229609,3629.2,3629.1,0.001]
[1762745588716,3.16568404,3629.0,3628.9,1e-08]
[1762745588929,9.57740687,3629.0,3628.9,1e-08]
[1762745589217,10.04410687,3629.0,3628.9,1e-08]
[1762745590045,10.0439105,3629.0,3628.9,1e-08]
[1762745592315,0.84615553,3629.0,3628.9,1e-08]
[1762745592519,0.002,3629.7,3628.9,0.95760001]
[1762745592759,0.002,3629.2,3628.9,0.95760001]
[1762745592945,0.002,3629.2,3628.9,1.32913133]
[1762745593143,0.002,3629.2,3628.9,1e-08]
[1762745593629,0.002,3629.2,3629.1,0.6568]
[1762745594255,0.002,3629.2,3629.0,0.1873]
[1762745594459,0.1376,3629.1,3628.9,1e-08]
[1762745594667,0.002,3629.2,3628.9,1e-08]
[1762745595163,0.002,3629.2,3628.9,0.48810001]
[1762745595917,0.002,3629.2,3629.1,0.6568]
[1762745596351,0.002,3629.2,3629.1,1.1449]
[1762745596959,0.002,3629.2,3629.1,0.6568]
[1762745597546,0.002,3629.2,3629.1,1.1449]
[1762745597719,0.002,3629.2,3629.1,3.90040411]
[1762745597914,0.002,3629.2,3629.1,4.56610407]
[1762745598164,0.002,3629.2,3629.1,5.82581607]
[1762745599390,0.002,3629.6,3629.5,2.75520044]
[1762745599659,0.002,3629.6,3629.5,5.5785793]
[1762745599853,0.002,3630.0,3629.7,2.75498782]
[1762745600069,0.002,3630.0,3629.9,3.36199682]
[1762745600284,0.1396,3630.5,3630.0,4.42003693]
[1762745600505,0.002,3630.5,3630.0,6.14285479]
[1762745600666,0.002,3630.5,3630.0,5.70980259]
[1762745601080,0.002,3630.5,3630.0,5.73735079]
[1762745601473,0.002,3630.5,3630.0,6.11530659]
[1762745602209,0.002,3630.5,3630.4,2.7545174]
[1762745602501,0.002,3630.5,3630.4,3.98977552]
[1762745602657,0.002,3630.5,3630.4,4.47787552]
[1762745602857,0.002,3630.5,3630.4,4.45033035]
[1762745603854,0.002,3630.5,3630.4,4.47787552]
[1762745604354,0.002,3630.5,3630.4,4.45033035]
[1762745604858,0.002,3630.5,3630.4,0.6568]
[1762745605200,0.002,3630.5,3629.7,0.4934]
[1762745605201,0.0792,3630.5,3629.7,0.4934]
[1762745605497,0.0792,3630.5,3629.9,2.75482378]
[1762745606010,0.002,3630.5,3629.8,0.4934]
[1762745606210,0.002,3630.5,3630.1,2.75469126]
[1762745606415,0.002,3630.5,3630.1,2.75471096]
[1762745606630,0.002,3630.5,3630.4,0.4535]
[1762745607421,0.002,3630.5,3630.4,3.7014174]
[1762745608780,0.002,3630.5,3630.4,0.4535]
[1762745608977,0.002,3630.5,3630.2,2.94786425]
[1762745609205,0.002,3630.5,3630.3,2.75458553]
[1762745609481,0.002,3630.5,3630.4,3.2080174]
[1762745609902,0.002,3630.5,3630.4,0.4535]
[1762745611427,0.002,3630.5,3630.4,3.2080174]
[1762745611716,0.002,3630.5,3630.4,4.09087914]
[1762745612078,0.002,3630.5,3630.4,4.22847914]
[1762745613388,0.002,3630.5,3630.4,4.63398314]
[1762745615596,0.002,3630.5,3630.4,4.22847914]
[1762745615795,0.002,3630.5,3630.4,3.7014174]
[1762745616122,0.002,3630.5,3630.4,3.2080174]
[1762745616316,0.002,3630.5,3630.4,3.7014174]
[1762745617423,0.002,3630.5,3630.4,5.5042334]
[1762745622233,0.002,3630.5,3630.4,6.0042334]
[1762745622408,0.002,3630.5,3630.4,7.64930327]
[1762745624913,0.002,3630.5,3630.4,11.64383396]
[1762745625335,0.002,3630.5,3630.4,15.49383396]
[1762745628138,0.002,3630.5,3630.4,11.49930327]
[1762745628335,0.002,3630.5,3630.4,7.5580174]
[1762745628509,0.002,3630.5,3630.4,8.8177294]
[1762745628710,0.002,3630.5,3630.4,3.7080174]
[1762745628910,0.002,3630.5,3630.4,4.1877174]
[1762745629116,0.002,3630.5,3630.4,5.4474294]
[1762745629318,0.73157365,3630.5,3630.4,0.5]
[1762745629536,0.73157365,3630.5,3630.3,2.7545454]
[1762745629731,0.25757365,3630.4,3630.2,2.75462221]
[1762745629954,0.25760025,3630.3,3630.2,2.75466916]
[1762745630315,0.25760025,3630.3,3630.1,0.001]
[1762745630519,0.25760215,3630.2,3630.1,2.75573147]
[1762745631257,0.72570215,3630.2,3630.1,2.75574504]
[1762745631479,0.80680215,3630.2,3630.1,0.001]
[1762745632137,0.72570215,3630.2,3630.1,0.001]
[1762745632519,0.80680215,3630.2,3630.1,0.001]
[1762745634024,0.25760215,3630.2,3630.1,0.001]
[1762745634221,0.25760215,3630.2,3630.1,2.75574504]
[1762745635258,0.25760215,3630.2,3630.1,0.001]
[1762745636389,0.25760215,3630.2,3630.1,2.75574504]
[1762745636686,0.25760215,3630.2,3630.1,0.001]
[1762745636687,0.33480215,3630.2,3630.1,0.001]
[1762745637489,0.80290215,3630.2,3630.1,0.001]
[1762745637699,0.33480215,3630.2,3630.1,0.001]
[1762745638850,0.25760215,3630.2,3630.1,3.42324504]
[1762745639186,0.86720215,3630.2,3630.1,0.001]
[1762745639387,0.86720215,3630.2,3630.1,2.75574504]
[1762745639684,0.39520215,3630.2,3630.1,2.75574504]
[1762745639891,0.39520215,3630.2,3630.1,3.24274504]
[1762745640091,0.39520215,3630.2,3630.1,0.001]
[1762745640398,0.86330215,3630.2,3630.1,0.001]
[1762745640688,0.86330215,3630.2,3630.1,2.75574504]
[1762745640992,0.1376,3630.2,3630.1,2.75574504]
[1762745641191,0.39494038,3630.2,3630.1,2.75574504]
[1762745641858,0.39494038,3630.2,3630.1,0.488]
[1762745642058,0.39494038,3630.2,3630.1,3.88304504]
[1762745642794,0.002,3630.5,3630.4,2.7545174]
[1762745642953,0.25926899,3630.5,3630.4,3.7013174]
[1762745643689,0.25926899,3630.5,3630.4,3.2415174]
[1762745643984,0.25926899,3630.5,3630.4,2.7545174]
[1762745644182,0.25926899,3630.5,3630.4,3.2415174]
[1762745644992,0.25926899,3630.5,3630.4,2.7545174]
[1762745645490,0.25926899,3630.5,3630.4,3.2415174]
[1762745645854,0.25926899,3630.5,3630.4,4.36506606]
[1762745646061,0.002,3630.5,3630.4,8.76510075]
[1762745646261,0.002,3630.5,3630.4,4.90817006]
[1762745647788,0.002,3630.5,3630.4,10.16241275]
[1762745649088,0.002,3630.5,3630.4,14.01241275]
[1762745650004,0.002,3630.5,3630.4,10.01788206]
[1762745656278,0.002,3630.5,3630.4,9.55808206]
[1762745656511,0.002,3630.5,3630.4,10.01788206]
[1762745659014,0.002,3630.5,3630.4,10.35432976]
[1762745659314,0.002,3631.3,3631.2,4.41912655]
[1762745659514,0.002,3631.3,3631.2,6.0228922]
[1762745659813,0.002,3631.3,3631.2,6.4826922]
[1762745666550,0.002,3631.3,3631.2,10.3326922]
[1762745667118,0.002,3631.3,3631.2,6.4826922]
[1762745667358,0.002,3631.3,3631.2,10.3326922]
[1762745667550,0.002,3631.3,3631.2,6.4826922]
[1762745668063,0.002,3631.3,3631.2,7.0802922]
[1762745669361,0.002,3631.3,3631.2,7.2178922]
[1762745672755,0.002,3631.3,3631.2,11.0678922]
[1762745673667,2.75208608,3633.7,3631.2,11.0678922]
[1762745673668,0.472,3633.6,3633.2,2.75239458]
[1762745673873,0.1887,3633.3,3633.2,2.75239458]
[1762745674244,0.1887,3633.3,3633.2,3.15789858]
[1762745674447,0.5971,3634.0,3633.9,2.75186438]
[1762745674781,0.5971,3634.0,3633.3,0.405504]
[1762745674782,0.6704,3634.0,3633.3,0.405504]
[1762745675064,0.472,3633.9,3633.8,2.75193413]
[1762745675465,0.5492,3633.9,3633.8,2.75193413]
[1762745675867,0.5492,3633.9,3633.7,2.75200758]
[1762745676067,0.472,3633.9,3633.7,2.75200758]
[1762745676271,0.0772,3633.8,3633.7,2.75200758]
[1762745676637,0.0772,3633.8,3633.7,0.472]
[1762745676638,0.5453,3633.8,3633.7,0.472]
[1762745677054,0.80174667,3633.8,3632.4,3.99453069]
[1762745677271,0.5453,3633.8,3633.6,2.75209025]
[1762745677456,0.5453,3633.8,3633.4,0.02752243]
[1762745677652,0.5453,3633.8,3633.7,2.75201585]
[1762745677978,0.0772,3633.8,3633.7,2.75201585]
[1762745678662,0.0792,3633.8,3633.7,2.75201585]
[1762745684371,0.0792,3633.8,3633.6,2.75208608]
[1762745684554,0.4701,3633.8,3633.7,2.75201585]
[1762745685071,0.474,3633.8,3633.7,2.75201585]
[1762745686491,0.5512,3633.8,3633.5,0.4681]
[1762745686672,0.472,3633.6,3633.5,2.75216733]
[1762745687189,0.5492,3633.6,3633.5,2.75216733]
[1762745688596,0.5492,3633.6,3633.4,2.75221445]
[1762745688775,0.472,3633.4,3633.3,0.472]
[1762745688971,0.472,3633.4,3633.3,4.48402898]
[1762745689174,0.5492,3633.4,3633.3,2.75231698]
[1762745689978,0.5492,3633.4,3632.9,2.75257561]
[1762745690296,0.1185,3633.6,3633.4,2.75220271]
[1762745690597,0.34080346,3633.5,3633.4,2.75220271]
[1762745691105,0.0842,3633.5,3633.4,4.01191471]
[1762745692173,0.0842,3633.5,3633.4,2.75220271]
[1762745692381,0.5453,3633.5,3633.4,2.75220271]
[1762745693262,0.5453,3633.5,3633.1,0.59]
[1762745693506,0.0834,3633.2,3633.1,2.75242231]
[1762745693674,0.34011468,3633.2,3633.1,2.75242231]
[1762745693877,0.80201468,3633.2,3632.9,3.85]
[1762745694099,0.0046,3633.0,3632.9,3.85]
[1762745694275,0.0046,3633.0,3632.9,6.60262187]
[1762745694473,0.4695,3633.0,3632.9,3.85]
[1762745694791,0.72632218,3633.0,3632.9,3.85]
[1762745695599,0.72632218,3633.0,3632.9,6.60262187]
[1762745695762,0.72632218,3633.0,3632.9,3.85]
[1762745698777,0.72632218,3633.0,3632.1,0.72632218]
[1762745698982,0.0796,3632.8,3631.9,1.729412]
[1762745699173,0.0796,3632.8,3632.5,2.75291785]
[1762745699174,0.25682218,3632.7,3632.5,2.75291785]
[1762745699379,0.5481,3632.8,3632.5,2.75291785]
[1762745699576,0.0047,3632.6,3632.5,2.75292498]
[1762745700014,0.1423,3632.6,3632.5,2.75292498]
[1762745700512,0.1157,3632.9,3632.8,2.75269764]
[1762745700893,0.08,3632.9,3632.8,2.75269764]
[1762745701086,0.472,3633.4,3633.1,2.75241499]
[1762745701310,0.25710753,3633.3,3633.1,2.75241499]
[1762745701475,0.33750753,3633.2,3633.1,2.75241499]
[1762745701920,0.25710753,3633.2,3633.1,2.75241499]
[1762745702612,0.002,3633.5,3633.3,2.75231882]
[1762745702779,0.002,3633.5,3633.4,3.23714307]
[1762745702979,0.002,3633.5,3633.4,3.70684307]
[1762745703631,0.002,3633.5,3633.4,3.23714307]
[1762745704620,0.002,3633.5,3633.4,2.75224307]
[1762745705199,0.002,3633.5,3633.4,3.23714307]
[1762745705717,0.002,3633.5,3633.4,3.97758032]
[1762745706623,0.002,3633.5,3633.4,4.44728032]
[1762745708123,0.002,3633.5,3633.4,3.97758032]
[1762745708325,0.002,3633.5,3633.4,3.23714307]
[1762745709199,0.002,3633.5,3633.4,3.70684307]
[1762745709399,0.002,3633.5,3633.4,3.23714307]
[1762745710399,0.002,3633.5,3633.4,3.70684307]
[1762745711352,0.002,3633.5,3633.4,3.23714307]
[1762745711650,0.002,3633.5,3633.4,3.97758032]
[1762745713027,0.002,3633.5,3633.4,4.44728032]
[1762745713717,0.002,3633.5,3633.4,8.29728032]
[1762745714530,0.002,3633.5,3633.4,8.43608032]
[1762745716352,0.002,3633.5,3633.4,8.84158432]
[1762745716559,0.002,3633.5,3633.4,8.97918432]
[1762745717040,0.002,3633.5,3633.4,10.23889632]
[1762745717951,0.002,3633.5,3633.4,9.76919632]
[1762745718452,0.002,3633.5,3633.4,10.23889632]
[1762745721531,0.002,3633.5,3633.4,13.30742422]
[1762745721751,0.002,3633.5,3633.4,10.23889632]
[1762745723221,0.474,3633.5,3633.4,8.87879232]
[1762745723953,0.002,3633.5,3633.4,8.87879232]
[1762745724455,0.5512,3633.5,3633.4,0.1388]
[1762745724658,0.80832083,3633.5,3633.4,0.1388]
[1762745724958,0.80832083,3633.5,3632.9,2.75256983]
[1762745725267,0.33822083,3633.4,3633.0,2.75254596]
[1762745725560,0.0008,3633.1,3632.9,2.75260104]
[1762745725721,0.4512,3633.0,3632.9,2.75260104]
[1762745726067,0.7084037,3633.0,3632.4,2.75298004]
[1762745726280,0.001,3632.8,3631.7,0.6442]
[1762745726487,0.001,3632.8,3632.7,2.75277341]
[1762745726782,0.001,3632.8,3632.0,3.0685279]
[1762745726783,0.472,3633.3,3632.8,2.75264359]
[1762745726992,0.25716863,3633.2,3632.4,0.1847]
[1762745727299,0.472,3633.3,3633.2,2.75239458]
[1762745727598,0.72916518,3633.3,3633.2,2.75239458]
[1762745727894,0.80636518,3633.3,3632.8,2.75269711]
[1762745728094,0.5665,3632.9,3632.8,2.75269711]
[1762745728786,0.5665,3632.9,3632.5,0.33925554]
[1762745728787,0.5665,3632.9,3632.7,2.7527416]
[1762745728944,0.2131,3632.9,3632.8,2.75269764]
[1762745729147,0.563,3632.9,3632.8,2.75269764]
[1762745729347,0.002,3633.5,3632.1,0.1847]
[1762745729578,0.4512,3632.9,3632.8,2.75269764]
[1762745730091,0.4512,3632.9,3632.6,2.75278787]
[1762745730092,0.0979,3633.4,3633.3,2.75231882]
[1762745730293,0.35512851,3633.4,3633.2,2.75238569]
[1762745730447,0.4477,3633.1,3633.0,2.75247281]
[1762745731843,0.002,3633.5,3633.0,2.75247281]
[1762745731844,0.002,3633.5,3633.4,2.75224307]
[1762745732043,0.73123403,3633.5,3633.3,2.75229676]
[1762745732348,0.25723403,3633.4,3633.2,2.75238744]
[1762745732652,0.2572472,3633.3,3633.2,2.75238744]
[1762745732858,0.33455236,3633.3,3633.2,2.75238744]
[1762745733053,0.5454,3633.3,3633.2,2.75238744]
[1762745733467,0.8026321,3633.3,3633.2,2.75238744]
[1762745733780,0.8026321,3633.3,3632.6,2.75281326]
[1762745733781,0.8026321,3633.3,3633.1,2.75241827]
[1762745733949,0.002,3633.5,3632.7,1.259712]
[1762745733950,0.5493,3633.2,3632.7,1.259712]